bitfinex/quotes_SOLUSD_20250815
["timestamp","ask_amount","ask_price","bid_price","bid_amount"]
[1755282705129,0.66,185.44,185.4,9.29240713]
[1755282705308,9.49240713,185.46,185.41,9.29240713]
[1755282705510,0.68,185.43,185.41,9.29240713]
[1755282705743,0.2,185.46,185.42,9.29240713]
[1755282706038,0.2,185.46,185.39,5.39393381]
[1755282706039,39.54,185.46,185.43,9.29240713]
[1755282706241,0.68,185.45,185.43,9.29240713]
[1755282706424,0.68,185.44,185.42,9.29240713]
[1755282706624,39.52,185.46,185.42,9.29240713]
[1755282706812,0.68,185.43,185.42,9.29240713]
[1755282708026,0.2,185.46,185.42,14.68546192]
[1755282708228,0.88,185.46,185.45,9.29240713]
[1755282710243,0.88,185.46,185.43,5.39277778]
[1755282710420,0.88,185.46,185.45,9.29240713]
[1755282710621,0.2,185.46,185.4,6.04374325]
[1755282710930,0.2,185.46,185.45,9.29240713]
[1755282711425,0.88,185.46,185.45,9.29240713]
[1755282712726,6.27199827,185.46,185.43,9.29240713]
[1755282712930,0.68,185.45,185.43,9.29240713]
[1755282713124,0.88,185.46,185.44,9.29240713]
[1755282713325,0.88,185.46,185.45,9.29240713]
[1755282713538,0.88,185.46,185.44,9.29240713]
[1755282713936,0.88,185.46,185.45,9.29240713]
[1755282714256,0.2,185.46,185.45,9.29240713]
[1755282714457,0.88,185.46,185.44,9.29240713]
[1755282714747,6.27211679,185.46,185.41,9.29240713]
[1755282715054,0.68,185.45,185.42,9.29240713]
[1755282715346,0.68,185.44,185.42,9.29240713]
[1755282715536,5.39287062,185.43,185.39,9.29240713]
[1755282715745,44.59287062,185.43,185.38,9.29240713]
[1755282715939,9.29240713,185.4,185.35,9.29240713]
[1755282716238,0.68,185.39,185.36,9.29240713]
[1755282716424,0.68,185.41,185.37,9.29240713]
[1755282717348,48.49240713,185.42,185.37,9.29240713]
[1755282717645,0.68,185.4,185.37,9.29240713]
[1755282717943,0.68,185.4,185.34,5.39548937]
[1755282718150,0.68,185.4,185.37,9.29240713]
[1755282718355,0.68,185.39,185.37,9.29240713]
[1755282718652,0.68,185.39,185.34,5.39548937]
[1755282718653,0.68,185.39,185.36,9.29240713]
[1755282719241,9.29240713,185.37,185.31,0.03]
[1755282719446,9.29240713,185.37,185.32,9.29240713]
[1755282719629,0.68,185.36,185.32,9.29240713]
[1755282719829,5.39519827,185.35,185.32,9.29240713]
[1755282720043,5.39495057,185.36,185.33,9.29240713]
[1755282720250,0.68,185.38,185.34,9.29240713]
[1755282720440,0.68,185.38,185.35,9.29240713]
[1755282720638,0.68,185.37,185.34,9.29240713]
[1755282721027,0.68,185.37,185.32,9.29240713]
[1755282721249,9.29240713,185.38,185.33,9.94240713]
[1755282721953,0.68,185.37,185.32,9.29240713]
[1755282722259,9.97240713,185.37,185.31,14.7186936]
[1755282722557,9.29240713,185.37,185.32,9.29240713]
[1755282722935,9.29240713,185.37,185.32,9.94240713]
[1755282723138,0.68,185.39,185.33,9.94240713]
[1755282723337,9.29240713,185.39,185.34,9.29240713]
[1755282723545,9.97240713,185.39,185.34,9.29240713]
[1755282723947,0.68,185.39,185.34,9.29240713]
[1755282724140,0.68,185.39,185.34,9.94240713]
[1755282724463,0.68,185.39,185.34,15.33777379]
[1755282724642,6.07316147,185.42,185.35,0.65]
[1755282724848,15.3655686,185.42,185.36,9.29240713]
[1755282725370,4.4,185.43,185.39,9.29240713]
[1755282725574,10.17240713,185.46,185.41,9.29240713]
[1755282725742,0.88,185.46,185.41,9.29240713]
[1755282726436,5.59207614,185.46,185.41,9.29240713]
[1755282726643,0.2,185.46,185.43,9.29240713]
[1755282728683,0.68,185.45,185.4,0.65]
[1755282728843,0.68,185.45,185.41,9.29240713]
[1755282729038,0.68,185.45,185.42,9.29240713]
[1755282729256,0.2,185.46,185.42,9.29240713]
[1755282729464,5.59212635,185.46,185.42,9.29240713]
[1755282729679,0.68,185.45,185.41,9.29240713]
[1755282730179,0.68,185.45,185.4,6.04371223]
[1755282730351,6.07234714,185.45,185.42,9.29240713]
[1755282730768,6.07234714,185.45,185.41,9.29240713]
[1755282731074,0.68,185.44,185.41,9.29240713]
[1755282732067,6.07259123,185.44,185.41,9.29240713]
[1755282732283,0.68,185.44,185.41,9.29240713]
[1755282732470,6.27228757,185.46,185.42,9.29240713]
[1755282732669,0.2,185.46,185.43,9.29240713]
[1755282732878,0.2,185.46,185.44,9.29240713]
[1755282734675,0.2,185.46,185.45,9.29240713]
[1755282734861,0.2,185.46,185.43,5.39276583]
[1755282734862,0.2,185.46,185.44,9.29240713]
[1755282739676,0.2,185.46,185.45,9.29240713]
[1755282741170,3.77452104,185.46,185.45,9.29240713]
[1755282742293,3.77452104,185.46,185.45,0.65]
[1755282742480,3.77452104,185.46,185.45,9.94240713]
[1755282742677,3.77452104,185.46,185.45,5.55341863]
[1755282745195,3.77452104,185.46,185.45,10.94570765]
[1755282745490,3.77452104,185.46,185.45,11.59570765]
[1755282747168,0.2,185.46,185.45,11.59570765]
[1755282748170,0.2,185.46,185.45,6.04228902]
[1755282748587,0.2,185.46,185.45,10.94570765]
[1755282749897,0.06,185.48,185.47,41.10621557]
[1755282750192,0.2,185.5,185.48,20.6596342]
[1755282750391,0.2,185.5,185.49,5.55341863]
[1755282750589,0.2,185.5,185.49,85.28341863]
[1755282751974,0.2,185.5,185.49,90.67454483]
[1755282752592,0.2,185.5,185.49,90.14454483]
[1755282752781,0.2,185.5,185.49,90.67454483]
[1755282753006,0.2,185.5,185.49,85.1211262]
[1755282753300,0.2,185.5,185.49,90.67454483]
[1755282754404,0.2,185.5,185.49,84.75341863]
[1755282754773,0.92,185.5,185.49,84.75341863]
[1755282754998,0.2,185.5,185.49,84.75341863]
[1755282756411,0.2,185.5,185.49,10.94454483]
[1755282756898,0.2,185.5,185.49,5.55341863]
[1755282757398,0.2,185.5,185.49,10.94454483]
[1755282757899,0.2,185.5,185.49,11.47454483]
[1755282759704,0.2,185.5,185.49,50.41454483]
[1755282760221,0.2,185.5,185.49,65.5207604]
[1755282760586,0.2,185.5,185.49,64.9907604]
[1755282760817,0.2,185.5,185.49,65.5207604]
[1755282760992,0.2,185.5,185.49,64.9907604]
[1755282761192,0.2,185.5,185.49,65.5207604]
[1755282761992,0.2,185.5,185.49,64.9907604]
[1755282762196,0.2,185.5,185.49,129.08454483]
[1755282762789,0.2,185.5,185.49,129.61454483]
[1755282763024,0.2,185.5,185.49,144.7207604]
[1755282763326,0.06,185.52,185.51,26.0]
[1755282763616,0.06,185.54,185.52,15.10621557]
[1755282763800,0.06,185.54,185.53,70.45341863]
[1755282763997,0.06,185.54,185.53,44.98341863]
[1755282764197,0.06,185.56,185.55,41.10621557]
[1755282764517,0.72,185.64,185.55,85.5596342]
[1755282764714,0.72,185.64,185.63,5.55341863]
[1755282764915,0.72,185.64,185.62,44.45341863]
[1755282765226,0.2,185.65,185.63,5.55341863]
[1755282765726,0.67,185.64,185.63,5.55341863]
[1755282766105,0.2,185.65,185.63,5.55341863]
[1755282766298,0.67,185.64,185.6,15.10621557]
[1755282766500,0.67,185.64,185.63,5.55341863]
[1755282766830,0.2,185.65,185.63,44.41341863]
[1755282767022,0.2,185.65,185.64,5.55341863]
[1755282767406,0.2,185.65,185.64,10.94018872]
[1755282767600,0.2,185.65,185.64,5.55341863]
[1755282767823,0.87,185.65,185.64,5.55341863]
[1755282768519,0.2,185.65,185.64,5.55341863]
[1755282768894,0.87,185.65,185.64,5.55341863]
[1755282769094,0.87,185.65,185.64,44.37341863]
[1755282769522,0.2,185.65,185.64,44.37341863]
[1755282770235,0.87,185.65,185.64,44.37341863]
[1755282772832,0.2,185.65,185.64,49.76018872]
[1755282774309,0.2,185.65,185.64,44.20677009]
[1755282774513,0.2,185.65,185.64,49.76018872]
[1755282776833,0.2,185.65,185.64,50.29018872]
[1755282777217,0.2,185.65,185.64,70.94982292]
[1755282778526,0.2,185.65,185.64,65.39640429]
[1755282779837,0.2,185.65,185.64,70.94982292]
[1755282780042,0.2,185.65,185.64,64.86640429]
[1755282780542,0.2,185.65,185.63,5.38699403]
[1755282780740,0.67,185.64,185.6,15.10621557]
[1755282780943,0.2,185.65,185.58,14.00977249]
[1755282780944,0.67,185.63,185.61,38.7]
[1755282781148,0.2,185.65,185.62,5.55341863]
[1755282781351,0.87,185.65,185.64,5.55341863]
[1755282781689,0.2,185.65,185.63,44.25341863]
[1755282782027,0.67,185.64,185.61,5.55341863]
[1755282782226,0.67,185.63,185.62,5.55341863]
[1755282782448,0.2,185.65,185.62,5.55341863]
[1755282782753,0.2,185.65,185.64,5.55341863]
[1755282783052,0.87,185.65,185.64,5.55341863]
[1755282783625,0.2,185.65,185.64,5.55341863]
[1755282785230,0.87,185.65,185.63,44.25341863]
[1755282785454,0.87,185.65,185.63,38.7]
[1755282785651,0.67,185.64,185.63,38.7]
[1755282785855,0.2,185.65,185.63,38.7]
[1755282786162,0.2,185.65,185.63,44.25341863]
[1755282786346,0.2,185.65,185.64,5.55341863]
[1755282786543,0.2,185.65,185.64,10.94018872]
[1755282786940,0.87,185.65,185.64,5.55341863]
[1755282787364,0.2,185.65,185.64,10.94018872]
[1755282788063,0.2,185.65,185.63,49.64042939]
[1755282788237,0.67,185.64,185.63,49.64042939]
[1755282788846,0.67,185.64,185.63,128.84042939]
[1755282789182,0.67,185.64,185.63,117.9]
[1755282790443,0.67,185.64,185.63,79.2]
[1755282790645,0.67,185.64,185.63,117.92]
[1755282790846,6.05677009,185.64,185.6,5.55341863]
[1755282791065,0.67,185.63,185.61,38.72]
[1755282791370,0.67,185.62,185.61,44.27341863]
[1755282791534,0.67,185.62,185.61,38.72]
[1755282792047,5.58656652,185.65,185.61,38.72]
[1755282792255,0.67,185.64,185.61,44.27341863]
[1755282792553,0.2,185.65,185.61,44.27341863]
[1755282792752,0.67,185.63,185.61,44.27341863]
[1755282793441,0.87,185.65,185.62,5.55341863]
[1755282793769,0.2,185.65,185.64,5.55341863]
[1755282793942,0.2,185.65,185.63,44.27341863]
[1755282794268,0.67,185.64,185.63,38.72]
[1755282794645,0.67,185.64,185.6,5.55341863]
[1755282794863,5.55341863,185.62,185.58,38.72]
[1755282795052,0.67,185.61,185.58,38.72]
[1755282795362,5.55341863,185.62,185.58,38.72]
[1755282795363,0.68,185.6,185.58,38.72]
[1755282795561,0.68,185.62,185.59,5.55341863]
[1755282795741,0.68,185.62,185.6,38.72]
[1755282796238,0.68,185.61,185.6,5.55341863]
[1755282796435,0.88,185.65,185.6,5.55341863]
[1755282796642,0.88,185.65,185.62,10.94062692]
[1755282796955,0.2,185.65,185.64,5.55341863]
[1755282799150,0.2,185.65,185.64,10.94018872]
[1755282801569,0.2,185.65,185.64,26.57640429]
[1755282804386,0.2,185.65,185.64,21.02298566]
[1755282804682,0.2,185.65,185.64,26.57640429]
[1755282805558,0.2,185.65,185.64,49.62018872]
[1755282805877,0.88,185.65,185.63,84.58697764]
[1755282806083,0.88,185.65,185.64,44.23341863]
[1755282806583,0.88,185.65,185.64,49.62018872]
[1755282807067,0.2,185.65,185.64,49.62018872]
[1755282807567,0.88,185.65,185.64,49.62018872]
[1755282808160,0.2,185.65,185.64,49.62018872]
[1755282808780,0.88,185.65,185.64,44.23341863]
[1755282809281,0.88,185.65,185.64,49.62018872]
[1755282809480,0.2,185.65,185.64,49.62018872]
[1755282809987,0.2,185.65,185.64,44.06677009]
[1755282810167,0.2,185.65,185.64,49.62018872]
[1755282810567,0.2,185.65,185.64,44.06677009]
[1755282810767,0.88,185.65,185.63,10.94038764]
[1755282810976,0.88,185.65,185.64,38.68]
[1755282811176,0.88,185.65,185.64,44.23341863]
[1755282811478,0.2,185.65,185.64,44.23341863]
[1755282812366,0.2,185.65,185.64,38.68]
[1755282812675,0.2,185.65,185.64,44.23341863]
[1755282812884,0.2,185.65,185.64,49.62018872]
[1755282816690,0.2,185.65,185.64,64.72640429]
[1755282816986,0.2,185.65,185.64,65.25640429]
[1755282817186,0.2,185.65,185.64,70.80982292]
[1755282817364,0.06,185.67,185.64,70.80982292]
[1755282817365,0.06,185.67,185.66,31.55341863]
[1755282817566,0.06,185.67,185.66,149.43341863]
[1755282817966,0.74,185.67,185.66,149.43341863]
[1755282818172,0.74,185.67,185.66,123.43341863]
[1755282818690,0.74,185.67,185.66,79.2]
[1755282818871,0.74,185.67,185.66,117.88]
[1755282819273,0.74,185.67,185.66,123.43341863]
[1755282819471,0.06,185.67,185.66,128.81960843]
[1755282821495,0.74,185.67,185.66,123.43341863]
[1755282821666,0.74,185.67,185.66,128.81960843]
[1755282821977,0.06,185.67,185.66,128.81960843]
[1755282826881,0.06,185.67,185.66,154.81960843]
[1755282827083,0.06,185.69,185.67,15.10621557]
[1755282827314,0.06,185.69,185.68,59.3396342]
[1755282827787,0.06,185.69,185.68,53.78621557]
[1755282827985,0.06,185.69,185.68,64.72524385]
[1755282829622,0.06,185.69,185.68,65.25524385]
[1755282829783,0.06,185.71,185.7,41.10621557]
[1755282830106,0.06,185.71,185.7,90.72466381]
[1755282830494,0.06,185.71,185.7,91.25466381]
[1755282831322,0.68,185.75,185.74,5.55341863]
[1755282831532,0.68,185.75,185.74,44.23341863]
[1755282831832,10.93504075,185.82,185.74,44.23341863]
[1755282831833,0.68,185.77,185.74,44.23341863]
[1755282832036,3.60846787,185.81,185.76,5.55341863]
[1755282832211,3.60846787,185.8,185.76,38.68]
[1755282832541,5.55341863,185.79,185.74,44.23341863]
[1755282832827,0.68,185.78,185.76,5.55341863]
[1755282833196,8.99045414,185.81,185.76,5.55341863]
[1755282833401,8.99045414,185.81,185.74,44.06380794]
[1755282833402,5.55341863,185.8,185.75,5.55341863]
[1755282833621,9.1618865,185.8,185.75,5.55341863]
[1755282833813,0.68,185.79,185.76,5.55341863]
[1755282834204,0.68,185.78,185.77,5.55341863]
[1755282835094,3.60846787,185.83,185.77,5.55341863]
[1755282835298,4.00473872,185.82,185.78,5.55341863]
[1755282835498,4.00473872,185.82,185.77,5.38291121]
[1755282835731,0.68,185.81,185.78,5.55341863]
[1755282836828,6.06187889,185.81,185.77,5.55341863]
[1755282837021,0.68,185.8,185.77,5.55341863]
[1755282837322,0.68,185.8,185.78,5.55341863]
[1755282837935,0.68,185.8,185.76,44.21341863]
[1755282838326,6.06218802,185.8,185.76,44.21341863]
[1755282838518,0.68,185.79,185.76,44.21341863]
[1755282839440,0.68,185.79,185.77,5.55341863]
[1755282839742,0.68,185.79,185.76,44.21341863]
[1755282839906,8.98412482,185.81,185.77,5.55341863]
[1755282840106,0.68,185.78,185.77,5.55341863]
[1755282840404,0.68,185.8,185.77,10.93639964]
[1755282840609,0.68,185.79,185.78,5.55341863]
[1755282841345,0.68,185.81,185.78,5.55341863]
[1755282841508,0.68,185.81,185.8,5.55341863]
[1755282841733,0.68,185.81,185.79,5.55341863]
[1755282841913,5.38097287,185.84,185.79,5.55341863]
[1755282842115,0.68,185.8,185.79,5.55341863]
[1755282842344,0.68,185.8,185.78,38.66]
[1755282842508,0.68,185.79,185.78,44.21341863]
[1755282842709,0.68,185.79,185.78,38.66]
[1755282843042,0.68,185.82,185.78,44.21341863]
[1755282843227,0.68,185.82,185.8,5.55341863]
[1755282844046,0.68,185.82,185.79,5.55341863]
[1755282844416,0.68,185.81,185.79,10.93582714]
[1755282845023,4.28220731,185.83,185.79,10.93582714]
[1755282845249,0.68,185.82,185.79,10.93582714]
[1755282845744,0.68,185.82,185.8,5.55341863]
[1755282845956,0.68,185.82,185.81,5.55341863]
[1755282846444,0.68,185.82,185.8,44.21341863]
[1755282846646,3.60220731,185.85,185.81,6.08341863]
[1755282846858,3.60220731,185.85,185.84,5.55341863]
[1755282846859,0.68,185.85,185.84,5.55341863]
[1755282847148,15.10621557,185.93,185.84,5.55341863]
[1755282847149,0.68,185.88,185.84,5.55341863]
[1755282847322,8.98216349,185.92,185.87,5.55341863]
[1755282847527,0.68,185.91,185.87,5.55341863]
[1755282847736,4.28342916,185.91,185.84,39.19]
[1755282847939,0.68,185.9,185.84,38.66]
[1755282848113,0.68,185.9,185.86,5.55341863]
[1755282848315,0.68,185.9,185.88,5.55341863]
[1755282848625,0.68,185.93,185.89,5.55341863]
[1755282848815,0.68,185.93,185.9,5.55341863]
[1755282849118,5.55341863,185.92,185.87,44.21341863]
[1755282849307,0.68,185.91,185.87,38.66]
[1755282849511,0.68,185.91,185.87,44.21341863]
[1755282850043,0.68,185.9,185.87,38.66]
[1755282850247,0.06,185.88,185.87,44.21341863]
[1755282850543,0.06,185.88,185.85,38.64]
[1755282850544,0.74,185.88,185.85,38.64]
[1755282850844,0.74,185.88,185.82,38.64]
[1755282850845,5.55341863,185.87,185.82,38.64]
[1755282851019,0.68,185.86,185.82,38.64]
[1755282851216,5.55341863,185.87,185.82,38.64]
[1755282851449,0.68,185.85,185.82,38.64]
[1755282851762,0.68,185.87,185.83,5.55341863]
[1755282852051,0.68,185.86,185.82,38.64]
[1755282852212,6.06058012,185.86,185.82,38.64]
[1755282852412,0.68,185.85,185.82,38.64]
[1755282852846,0.68,185.84,185.82,38.64]
[1755282853356,0.68,185.83,185.79,38.64]
[1755282853726,6.23341863,185.82,185.79,38.64]
[1755282853922,5.55341863,185.8,185.74,0.53]
[1755282854171,18.83156473,185.86,185.73,5.38394104]
[1755282854172,6.06270709,185.79,185.75,38.64]
[1755282854360,10.93612572,185.79,185.75,38.64]
[1755282854662,0.68,185.78,185.75,38.64]
[1755282855062,5.55341863,185.76,185.7,5.55341863]
[1755282855222,5.55341863,185.75,185.7,44.19341863]
[1755282855429,0.69,185.74,185.7,38.64]
[1755282855769,5.55341863,185.72,185.69,0.03]
[1755282856466,6.07438643,185.73,185.69,0.03]
[1755282856467,0.69,185.73,185.69,0.03]
[1755282856635,5.55341863,185.73,185.69,0.03]
[1755282856837,0.69,185.72,185.69,0.03]
[1755282857451,0.69,185.71,185.69,0.03]
[1755282857653,5.55341863,185.7,185.69,0.03]
[1755282858034,6.24341863,185.7,185.67,0.03]
[1755282858250,5.38560965,185.68,185.67,0.03]
[1755282858470,10.93902828,185.68,185.67,0.03]
[1755282858834,11.62902828,185.68,185.67,0.03]
[1755282859646,15.21651754,185.68,185.67,0.03]
[1755282859974,4.27748926,185.68,185.67,0.03]
[1755282860135,5.55341863,185.69,185.67,0.03]
[1755282860334,39.33,185.7,185.67,0.03]
[1755282860535,44.88341863,185.7,185.67,0.03]
[1755282861241,31.55341863,185.71,185.67,0.03]
[1755282861448,6.24341863,185.75,185.69,5.55341863]
[1755282861766,11.62702854,185.75,185.69,5.55341863]
[1755282862355,6.24341863,185.75,185.7,5.55341863]
[1755282862565,6.24341863,185.75,185.69,5.38528027]
[1755282862859,9.92156414,185.75,185.69,14.61684441]
[1755282863158,15.30517001,185.75,185.69,14.61684441]
[1755282863363,9.92156414,185.75,185.69,14.61684441]
[1755282864136,9.23156414,185.71,185.67,0.03]
[1755282864555,9.92156414,185.71,185.67,0.03]
[1755282865063,9.23156414,185.68,185.67,0.03]
[1755282865266,9.23156414,185.69,185.67,0.03]
[1755282865442,9.92156414,185.7,185.67,0.03]
[1755282865843,0.69,185.7,185.67,0.03]
[1755282866064,9.92156414,185.7,185.67,0.03]
[1755282866571,9.23156414,185.71,185.67,0.03]
[1755282866869,26.69,185.72,185.67,9.82156414]
[1755282867045,38.66,185.75,185.69,9.23156414]
[1755282867046,39.35,185.75,185.69,9.23156414]
[1755282867248,9.23156414,185.74,185.69,9.23156414]
[1755282867450,9.23156414,185.74,185.68,9.79156414]
[1755282867657,9.92156414,185.73,185.68,9.79156414]
[1755282868175,9.92156414,185.73,185.68,15.17699741]
[1755282868557,0.69,185.73,185.69,9.23156414]
[1755282868743,9.23156414,185.74,185.69,9.23156414]
[1755282869072,0.69,185.73,185.69,9.23156414]
[1755282869259,0.69,185.73,185.68,14.61699741]
[1755282869465,9.23156414,185.71,185.67,0.03]
[1755282869773,9.92156414,185.72,185.67,0.03]
[1755282869977,0.69,185.71,185.67,0.03]
[1755282870159,9.23156414,185.68,185.67,0.03]
[1755282870649,9.92156414,185.68,185.67,0.03]
[1755282871382,9.23156414,185.7,185.67,0.03]
[1755282872045,0.69,185.69,185.67,0.03]
[1755282872565,0.69,185.68,185.67,0.03]
[1755282873747,15.30717379,185.68,185.67,0.03]
[1755282878847,14.61717379,185.68,185.67,0.03]
[1755282879052,64.66,185.71,185.67,0.03]
[1755282879363,9.23156414,185.69,185.67,0.03]
[1755282879875,9.23156414,185.68,185.67,0.03]
[1755282880580,64.66,185.71,185.67,0.03]
[1755282880581,35.23156414,185.71,185.67,0.03]
[1755282880767,9.92156414,185.72,185.67,0.59]
[1755282881080,9.92156414,185.72,185.67,0.03]
[1755282881280,9.23156414,185.71,185.67,0.03]
[1755282881486,9.92156414,185.71,185.67,0.03]
[1755282881991,9.23156414,185.68,185.67,0.03]
[1755282882160,14.61717379,185.68,185.67,0.03]
[1755282882362,15.30717379,185.68,185.67,0.03]
[1755282882871,6.07510339,185.7,185.67,0.03]
[1755282883074,5.54283275,185.69,185.67,0.03]
[1755282883794,6.23283275,185.69,185.67,0.03]
[1755282884863,0.69,185.69,185.67,0.03]
[1755282885089,5.54283275,185.69,185.67,0.59]
[1755282885286,5.38510339,185.7,185.67,0.03]
[1755282885287,5.54283275,185.7,185.67,0.03]
[1755282885589,10.92737089,185.72,185.67,0.03]
[1755282885799,5.54283275,185.71,185.67,0.03]
[1755282886090,6.26283275,185.7,185.67,0.03]
[1755282886398,11.64791896,185.7,185.67,0.03]
[1755282886578,6.26283275,185.69,185.67,0.03]
[1755282886788,5.54283275,185.68,185.67,0.03]
[1755282887294,6.26283275,185.68,185.67,0.03]
[1755282888477,11.6484424,185.68,185.67,0.03]
[1755282892078,30.33422104,185.68,185.67,0.03]
[1755282893404,41.10621557,185.67,185.66,0.03]
[1755282893699,46.64904832,185.66,185.65,0.03]
[1755282894005,15.10621557,185.65,185.64,0.03]
[1755282894331,67.59177456,185.65,185.64,0.03]
[1755282894505,66.87177456,185.65,185.64,0.03]
[1755282895000,67.59177456,185.65,185.64,0.03]
[1755282895499,72.97825449,185.65,185.64,1e-08]
[1755282898275,77.48883933,185.65,185.64,1e-08]
[1755282898496,76.76883933,185.65,185.64,1e-08]
[1755282898795,77.48883933,185.65,185.64,1e-08]
[1755282898974,76.76883933,185.65,185.64,1e-08]
[1755282899177,72.25825449,185.65,185.64,0.56000001]
[1755282899496,74.97611454,185.65,185.64,1e-08]
[1755282899704,80.51894729,185.65,185.64,1e-08]
[1755282900083,74.97611454,185.65,185.64,1e-08]
[1755282900497,80.51894729,185.65,185.63,1e-08]
[1755282900692,41.10621557,185.61,185.58,0.03]
[1755282900900,46.64904832,185.59,185.58,0.03]
[1755282901089,58.70942956,185.59,185.58,0.03]
[1755282901396,39.10555899,185.59,185.58,0.03]
[1755282901574,77.76555899,185.59,185.58,0.03]
[1755282902001,83.15378033,185.59,185.58,0.03]
[1755282902186,98.9799959,185.59,185.58,0.03]
[1755282902389,103.4776509,185.59,185.58,0.03]
[1755282902587,15.10621557,185.58,185.56,0.03]
[1755282902794,66.87177456,185.57,185.56,0.03]
[1755282902991,72.08629029,185.57,185.56,0.03]
[1755282903302,72.0967131,185.57,185.56,0.03]
[1755282903487,66.88532332,185.57,185.56,0.03]
[1755282903684,51.77910775,185.57,185.56,0.03]
[1755282903885,57.16790981,185.57,185.56,0.03]
[1755282904086,72.99412538,185.57,185.56,0.03]
[1755282904284,72.99412538,185.57,185.56,1e-08]
[1755282904603,36.32836853,185.57,185.56,1e-08]
[1755282904812,77.48138935,185.57,185.56,1e-08]
[1755282905279,76.76138935,185.57,185.56,1e-08]
[1755282905477,51.62507706,185.57,185.56,1e-08]
[1755282905883,51.77910775,185.57,185.56,1e-08]
[1755282906298,3.59311183,185.57,185.56,1e-08]
[1755282906486,3.59311183,185.58,185.56,0.56000001]
[1755282906681,5.54283275,185.59,185.56,0.56000001]
[1755282906884,5.54283275,185.58,185.56,0.56000001]
[1755282907089,9.13594458,185.59,185.56,0.56000001]
[1755282907275,5.54283275,185.57,185.56,1e-08]
[1755282907686,13.8414163,185.57,185.56,1e-08]
[1755282907896,34.33643393,185.57,185.56,1e-08]
[1755282908907,38.8236979,185.57,185.56,1e-08]
[1755282909085,34.33643393,185.57,185.56,1e-08]
[1755282911289,28.79360118,185.57,185.56,1e-08]
[1755282911615,30.94902143,185.57,185.56,1e-08]
[1755282913720,36.49185418,185.57,185.56,1e-08]
[1755282916723,36.47969432,185.57,185.56,1e-08]
[1755282917321,14.51258678,185.57,185.56,1e-08]
[1755282917508,79.17326616,185.57,185.56,1e-08]
[1755282917828,72.96825977,185.57,185.56,1e-08]
[1755282920722,98.25825977,185.57,185.56,1e-08]
[1755282920918,94.27948173,185.57,185.56,1e-08]
[1755282921722,79.17326616,185.57,185.56,1e-08]
[1755282921900,75.59163481,185.57,185.56,0.56000001]
[1755282922223,79.17050134,185.57,185.56,1e-08]
[1755282923425,94.27671691,185.57,185.56,1e-08]
[1755282923606,72.96351447,185.57,185.56,1e-08]
[1755282925112,26.0,185.51,185.5,0.03]
[1755282925315,88.88791485,185.51,185.5,0.03]
[1755282925522,94.27845983,185.51,185.5,0.03]
[1755282926331,79.17224426,185.51,185.5,0.03]
[1755282926534,94.98845983,185.51,185.5,0.03]
[1755282926727,94.27845983,185.51,185.5,0.03]
[1755282927326,98.96232782,185.51,185.5,0.03]
[1755282927515,98.25232782,185.51,185.5,0.03]
[1755282927702,83.14611225,185.51,185.5,0.03]
[1755282927905,75.59337773,185.51,185.5,0.03]
[1755282928129,79.1717385,185.51,185.5,0.03]
[1755282928509,75.59337773,185.51,185.5,0.03]
[1755282928709,79.17323599,185.51,185.5,0.03]
[1755282929727,98.96749319,185.51,185.5,0.03]
[1755282930119,20.64904832,185.5,185.49,1e-08]
[1755282930314,28.20694821,185.5,185.49,1e-08]
[1755282930530,28.91694821,185.5,185.49,1e-08]
[1755282931527,34.30778378,185.5,185.49,1e-08]
[1755282932730,41.10621557,185.47,185.45,0.03]